[Event "Titled Tuesday Blitz March 15 Late 2022"]
[White "Riehle, Marco"]
[Black "Srihari L R"]
[WhiteFideId "12904392"]
[BlackFideId "46617116"]
[WhiteElo "2462"]
[BlackElo "2121"]
[Result "1-0"]
[Round "08"]
[TimeControl "180+1"]
[Date "2022.03.15"]
[WhiteClock "0:00:19"]
[BlackClock "0:00:05"]

1. e4 {[%clk 0:03:00]}  c6 {[%clk 0:02:57]} 2. c4 {[%clk 0:03:00]}  d5 {[%clk 0:02:57]} 3. cxd5 {[%clk 0:03:01]}  cxd5 {[%clk 0:02:58]} 4. exd5 {[%clk 0:03:01]}  Nf6 {[%clk 0:02:57]} 5. Nc3 {[%clk 0:03:02]}  g6 {[%clk 0:02:57]} 6. Bc4 {[%clk 0:03:01]}  Bg7 {[%clk 0:02:57]} 7. Nf3 {[%clk 0:03:01]}  O-O {[%clk 0:02:58]} 8. O-O {[%clk 0:03:01]}  a6 {[%clk 0:02:58]} 9. a4 {[%clk 0:03:00]}  Nbd7 {[%clk 0:02:58]} 10. d3 {[%clk 0:02:59]}  b6 {[%clk 0:02:51]} 11. Re1 {[%clk 0:02:58]}  Bb7 {[%clk 0:02:50]} 12. Be3 {[%clk 0:02:57]}  Ng4 {[%clk 0:02:46]} 13. Bd4 {[%clk 0:02:57]}  Ndf6 {[%clk 0:02:36]} 14. Qb3 {[%clk 0:02:50]}  Nd7 {[%clk 0:02:33]} 15. Bxg7 {[%clk 0:02:47]}  Kxg7 {[%clk 0:02:34]} 16. d4 {[%clk 0:02:43]}  Re8 {[%clk 0:02:30]} 17. Ne5 {[%clk 0:02:40]}  Ngf6 {[%clk 0:02:22]} 18. Nc6 {[%clk 0:02:18]}  Qc7 {[%clk 0:02:17]} 19. Nxe7 {[%clk 0:02:14]}  Qf4 {[%clk 0:02:02]} 20. h3 {[%clk 0:02:04]}  Qxd4 {[%clk 0:01:56]} 21. Nc6 {[%clk 0:02:00]}  Qc5 {[%clk 0:01:54]} 22. Rac1 {[%clk 0:01:44]}  Rxe1+ {[%clk 0:01:41]} 23. Rxe1 {[%clk 0:01:45]}  Re8 {[%clk 0:01:42]} 24. Rxe8 {[%clk 0:01:42]}  Nxe8 {[%clk 0:01:43]} 25. Ne4 {[%clk 0:01:42]}  Qf8 {[%clk 0:01:40]} 26. Qc3+ {[%clk 0:01:41]}  f6 {[%clk 0:01:39]} 27. Ng5 {[%clk 0:01:26]}  Nc7 {[%clk 0:01:21]} 28. Nd4 {[%clk 0:01:23]}  Qd6 {[%clk 0:01:13]} 29. Nge6+ {[%clk 0:01:21]}  Kh8 {[%clk 0:01:04]} 30. Nxc7 {[%clk 0:01:16]}  Qxc7 {[%clk 0:01:04]} 31. Ne6 {[%clk 0:01:17]}  Qd6 {[%clk 0:01:02]} 32. Nd8 {[%clk 0:01:13]}  Qb8 {[%clk 0:00:42]} 33. Nxb7 {[%clk 0:00:58]}  Qxb7 {[%clk 0:00:43]} 34. Ba2 {[%clk 0:00:58]}  Nc5 {[%clk 0:00:22]} 35. Qxf6+ {[%clk 0:00:55]}  Qg7 {[%clk 0:00:19]} 36. Qd8+ {[%clk 0:00:53]}  Qg8 {[%clk 0:00:19]} 37. Qxb6 {[%clk 0:00:52]}  Qf8 {[%clk 0:00:19]} 38. d6 {[%clk 0:00:51]}  Nd7 {[%clk 0:00:19]} 39. Qd4+ {[%clk 0:00:50]}  Qg7 {[%clk 0:00:18]} 40. Qxg7+ {[%clk 0:00:42]}  Kxg7 {[%clk 0:00:18]} 41. Be6 {[%clk 0:00:38]}  Nc5 {[%clk 0:00:18]} 42. Bc8 {[%clk 0:00:35]}  Kf6 {[%clk 0:00:16]} 43. a5 {[%clk 0:00:32]}  Ne4 {[%clk 0:00:10]} 44. Bxa6 {[%clk 0:00:28]}  Nxd6 {[%clk 0:00:09]} 45. Bd3 {[%clk 0:00:29]}  Ke5 {[%clk 0:00:08]} 46. a6 {[%clk 0:00:28]}  Nc8 {[%clk 0:00:08]} 47. b4 {[%clk 0:00:29]}  Kd6 {[%clk 0:00:08]} 48. b5 {[%clk 0:00:28]}  Kc5 {[%clk 0:00:08]} 49. Kh2 {[%clk 0:00:24]}  Na7 {[%clk 0:00:06]} 50. g4 {[%clk 0:00:24]}  g5 {[%clk 0:00:06]} 51. Kg3 {[%clk 0:00:23]}  h6 {[%clk 0:00:05]} 52. f4 {[%clk 0:00:23]}  gxf4+ {[%clk 0:00:05]} 53. Kxf4 {[%clk 0:00:24]}  Kb6 {[%clk 0:00:05]} 54. h4 {[%clk 0:00:23]}  Nc8 {[%clk 0:00:06]} 55. g5 {[%clk 0:00:23]}  hxg5+ {[%clk 0:00:07]} 56. Kxg5 {[%clk 0:00:22]}  Nd6 {[%clk 0:00:06]} 57. h5 {[%clk 0:00:22]}  Nf7+ {[%clk 0:00:06]} 58. Kf6 {[%clk 0:00:22]}  Nh6 {[%clk 0:00:06]} 59. Kg7 {[%clk 0:00:22]}  Ng4 {[%clk 0:00:04]} 60. h6 {[%clk 0:00:21]}  Ne5 {[%clk 0:00:04]} 61. Be2 {[%clk 0:00:20]}  Nd3 {[%clk 0:00:05]} 62. Bxd3 {[%clk 0:00:19]} 1-0


[Site "https://www.chess.com"]

[Event "Titled Tuesday Blitz March 15 Late 2022"]
[White "Roberson, Peter T"]
[Black "Chiku-Ratte, Olivier-Kenta"]
[WhiteFideId "412384"]
[BlackFideId "2614782"]
[WhiteElo "2346"]
[BlackElo "2324"]
[Result "1/2-1/2"]
[Round "08"]
[TimeControl "180+1"]
[Date "2022.03.15"]
[WhiteClock "0:00:05"]
[BlackClock "0:00:07"]

1. e4 {[%clk 0:02:57]}  c6 {[%clk 0:02:58]} 2. Nf3 {[%clk 0:02:56]}  d5 {[%clk 0:02:58]} 3. exd5 {[%clk 0:02:57]}  cxd5 {[%clk 0:02:58]} 4. Ne5 {[%clk 0:02:58]}  Nc6 {[%clk 0:02:53]} 5. d4 {[%clk 0:02:58]}  Nf6 {[%clk 0:02:53]} 6. Bb5 {[%clk 0:02:58]}  Bd7 {[%clk 0:02:51]} 7. Nxd7 {[%clk 0:02:58]}  Nxd7 {[%clk 0:02:50]} 8. O-O {[%clk 0:02:59]}  e6 {[%clk 0:02:50]} 9. c3 {[%clk 0:02:59]}  Bd6 {[%clk 0:02:50]} 10. Nd2 {[%clk 0:02:59]}  O-O {[%clk 0:02:50]} 11. Nf3 {[%clk 0:02:59]}  a6 {[%clk 0:02:51]} 12. Bd3 {[%clk 0:02:59]}  b5 {[%clk 0:02:49]} 13. Re1 {[%clk 0:02:58]}  h6 {[%clk 0:02:48]} 14. Bc2 {[%clk 0:02:56]}  Re8 {[%clk 0:02:43]} 15. Qd3 {[%clk 0:02:56]}  f5 {[%clk 0:02:43]} 16. Bd2 {[%clk 0:02:46]}  Nf6 {[%clk 0:02:42]} 17. Ne5 {[%clk 0:02:46]}  Bxe5 {[%clk 0:02:40]} 18. dxe5 {[%clk 0:02:46]}  Ne4 {[%clk 0:02:41]} 19. Be3 {[%clk 0:02:34]}  Nxe5 {[%clk 0:02:38]} 20. Qe2 {[%clk 0:02:26]}  Nc4 {[%clk 0:02:36]} 21. Bc1 {[%clk 0:02:22]}  Rc8 {[%clk 0:02:30]} 22. a4 {[%clk 0:02:19]}  Qb6 {[%clk 0:02:26]} 23. axb5 {[%clk 0:02:19]}  axb5 {[%clk 0:02:27]} 24. Bxe4 {[%clk 0:01:52]}  fxe4 {[%clk 0:02:26]} 25. Qg4 {[%clk 0:01:48]}  Kh7 {[%clk 0:02:06]} 26. Qg3 {[%clk 0:01:41]}  Ra8 {[%clk 0:02:04]} 27. Bf4 {[%clk 0:01:37]}  e5 {[%clk 0:01:54]} 28. Rxa8 {[%clk 0:01:33]}  exf4 {[%clk 0:01:50]} 29. Qxf4 {[%clk 0:01:15]}  Rxa8 {[%clk 0:01:49]} 30. Qf5+ {[%clk 0:01:15]}  Qg6 {[%clk 0:01:48]} 31. Qxd5 {[%clk 0:01:15]}  Re8 {[%clk 0:01:31]} 32. Qxb5 {[%clk 0:01:13]}  e3 {[%clk 0:01:27]} 33. fxe3 {[%clk 0:00:57]}  Nxe3 {[%clk 0:01:26]} 34. Qb7 {[%clk 0:00:57]}  Rf8 {[%clk 0:01:11]} 35. h3 {[%clk 0:00:52]}  Qg3 {[%clk 0:01:06]} 36. Qe4+ {[%clk 0:00:47]}  Nf5 {[%clk 0:01:05]} 37. Rf1 {[%clk 0:00:45]}  g6 {[%clk 0:00:48]} 38. Rf3 {[%clk 0:00:33]}  Qb8 {[%clk 0:00:31]} 39. b4 {[%clk 0:00:33]}  Nd6 {[%clk 0:00:26]} 40. Qe7+ {[%clk 0:00:29]}  Kg8 {[%clk 0:00:26]} 41. Qe6+ {[%clk 0:00:25]}  Kg7 {[%clk 0:00:25]} 42. Rd3 {[%clk 0:00:22]}  Rf6 {[%clk 0:00:21]} 43. Qe5 {[%clk 0:00:20]}  Qb6+ {[%clk 0:00:20]} 44. Kh2 {[%clk 0:00:19]}  Nf7 {[%clk 0:00:21]} 45. Qe4 {[%clk 0:00:17]}  Qc7+ {[%clk 0:00:20]} 46. Kg1 {[%clk 0:00:17]}  Qa7+ {[%clk 0:00:20]} 47. Kh2 {[%clk 0:00:17]}  Qf2 {[%clk 0:00:20]} 48. Qd4 {[%clk 0:00:14]}  Qxd4 {[%clk 0:00:19]} 49. Rxd4 {[%clk 0:00:15]}  Rc6 {[%clk 0:00:19]} 50. c4 {[%clk 0:00:15]}  Kf6 {[%clk 0:00:19]} 51. b5 {[%clk 0:00:15]}  Re6 {[%clk 0:00:16]} 52. c5 {[%clk 0:00:15]}  Re2 {[%clk 0:00:14]} 53. b6 {[%clk 0:00:11]}  Ne5 {[%clk 0:00:14]} 54. b7 {[%clk 0:00:09]}  Rb2 {[%clk 0:00:12]} 55. c6 {[%clk 0:00:06]}  Nxc6 {[%clk 0:00:07]} 56. Rd6+ {[%clk 0:00:06]}  Kf5 {[%clk 0:00:08]} 57. Rxc6 {[%clk 0:00:07]}  Rxb7 {[%clk 0:00:08]} 58. Rc5+ {[%clk 0:00:08]}  Kf6 {[%clk 0:00:08]} 59. Rc6+ {[%clk 0:00:08]}  Kg7 {[%clk 0:00:09]} 60. Rd6 {[%clk 0:00:08]}  h5 {[%clk 0:00:09]} 61. h4 {[%clk 0:00:05]}  Rb4 {[%clk 0:00:09]} 62. g3 {[%clk 0:00:05]}  Kf7 {[%clk 0:00:09]} 63. Rd2 {[%clk 0:00:05]}  Kf6 {[%clk 0:00:08]} 64. Rf2+ {[%clk 0:00:05]}  Ke6 {[%clk 0:00:09]} 65. Kg2 {[%clk 0:00:06]}  Rb5 {[%clk 0:00:09]} 66. Re2+ {[%clk 0:00:06]}  Re5 {[%clk 0:00:09]} 67. Ra2 {[%clk 0:00:07]}  Kf5 {[%clk 0:00:09]} 68. Kf3 {[%clk 0:00:06]}  Rb5 {[%clk 0:00:08]} 69. Ra3 {[%clk 0:00:06]}  g5 {[%clk 0:00:08]} 70. hxg5 {[%clk 0:00:06]}  Kxg5 {[%clk 0:00:09]} 71. Rc3 {[%clk 0:00:06]}  Rf5+ {[%clk 0:00:09]} 72. Kg2 {[%clk 0:00:06]}  Ra5 {[%clk 0:00:09]} 73. Rd3 {[%clk 0:00:06]}  Ra2+ {[%clk 0:00:08]} 74. Kh3 {[%clk 0:00:05]}  Ra5 {[%clk 0:00:09]} 75. Re3 {[%clk 0:00:05]}  Rb5 {[%clk 0:00:09]} 76. Rd3 {[%clk 0:00:05]}  Kf5 {[%clk 0:00:08]} 77. Rf3+ {[%clk 0:00:05]}  Kg6 {[%clk 0:00:07]} 78. Kh4 {[%clk 0:00:04]}  Rb1 {[%clk 0:00:06]} 79. Kh3 {[%clk 0:00:04]}  Rh1+ {[%clk 0:00:06]} 80. Kg2 {[%clk 0:00:04]}  Ra1 {[%clk 0:00:07]} 81. Rb3 {[%clk 0:00:04]}  Ra6 {[%clk 0:00:06]} 82. Rb5 {[%clk 0:00:05]}  Rf6 {[%clk 0:00:06]} 83. Kh3 {[%clk 0:00:05]}  Re6 {[%clk 0:00:06]} 84. Kh4 {[%clk 0:00:04]}  Re1 {[%clk 0:00:06]} 85. Rg5+ {[%clk 0:00:03]}  Kf6 {[%clk 0:00:05]} 86. Rxh5 {[%clk 0:00:03]}  Re4+ {[%clk 0:00:04]} 87. Kh3 {[%clk 0:00:03]}  Rb4 {[%clk 0:00:04]} 88. Rc5 {[%clk 0:00:04]}  Kg6 {[%clk 0:00:04]} 89. g4 {[%clk 0:00:04]}  Rb3+ {[%clk 0:00:04]} 90. Kh4 {[%clk 0:00:05]}  Rb4 {[%clk 0:00:05]} 91. Rc6+ {[%clk 0:00:05]}  Kg7 {[%clk 0:00:06]} 92. Kh5 {[%clk 0:00:05]}  Rb7 {[%clk 0:00:05]} 93. g5 {[%clk 0:00:04]}  Rf7 {[%clk 0:00:06]} 94. Rg6+ {[%clk 0:00:04]}  Kh7 {[%clk 0:00:05]} 95. Rh6+ {[%clk 0:00:04]}  Kg7 {[%clk 0:00:06]} 96. Rg6+ {[%clk 0:00:04]}  Kh7 {[%clk 0:00:06]} 97. Ra6 {[%clk 0:00:05]}  Rb7 {[%clk 0:00:06]} 98. Rc6 {[%clk 0:00:04]}  Kg7 {[%clk 0:00:06]} 99. Rd6 {[%clk 0:00:03]}  Re7 {[%clk 0:00:06]} 100. Ra6 {[%clk 0:00:03]}  Rc7 {[%clk 0:00:06]} 101. Rb6 {[%clk 0:00:04]}  Re7 {[%clk 0:00:06]} 102. Ra6 {[%clk 0:00:04]}  Rc7 {[%clk 0:00:06]} 103. Rb6 {[%clk 0:00:05]}  Re7 {[%clk 0:00:07]} 104. Ra6 {[%clk 0:00:05]} 1/2-1/2


[Site "https://www.chess.com"]

[Event "Titled Tuesday Blitz March 15 Late 2022"]
[White "Romanchuk, Viktor"]
[Black "Romero Ruscalleda, Josep"]
[WhiteFideId "14109271"]
[BlackFideId "2231859"]
[WhiteElo "2242"]
[BlackElo "2337"]
[Result "1-0"]
[Round "08"]
[TimeControl "180+1"]
[Date "2022.03.16"]
[WhiteClock "0:01:31"]
[BlackClock "0:01:28"]

1. d4 {[%clk 0:02:51]}  g6 {[%clk 0:03:00]} 2. c4 {[%clk 0:02:51]}  Bg7 {[%clk 0:03:01]} 3. Nf3 {[%clk 0:02:51]}  d6 {[%clk 0:03:01]} 4. g3 {[%clk 0:02:52]}  e5 {[%clk 0:03:01]} 5. dxe5 {[%clk 0:02:51]}  dxe5 {[%clk 0:03:01]} 6. Qxd8+ {[%clk 0:02:50]}  Kxd8 {[%clk 0:03:01]} 7. Nc3 {[%clk 0:02:51]}  Be6 {[%clk 0:02:58]} 8. b3 {[%clk 0:02:50]}  Nd7 {[%clk 0:02:54]} 9. Ng5 {[%clk 0:02:41]}  h6 {[%clk 0:02:51]} 10. Nxe6+ {[%clk 0:02:40]}  fxe6 {[%clk 0:02:51]} 11. Bg2 {[%clk 0:02:39]}  c6 {[%clk 0:02:51]} 12. Ba3 {[%clk 0:02:37]}  Ngf6 {[%clk 0:02:47]} 13. O-O-O {[%clk 0:02:36]}  Ne8 {[%clk 0:02:44]} 14. Ne4 {[%clk 0:02:30]}  Kc7 {[%clk 0:02:42]} 15. Bh3 {[%clk 0:02:17]}  Nef6 {[%clk 0:02:29]} 16. Nxf6 {[%clk 0:02:12]}  Nxf6 {[%clk 0:02:28]} 17. Bd6+ {[%clk 0:02:11]}  Kb6 {[%clk 0:02:27]} 18. Bxe5 {[%clk 0:02:10]}  Rhe8 {[%clk 0:02:11]} 19. Rd3 {[%clk 0:02:05]}  Nh5 {[%clk 0:02:05]} 20. Bd6 {[%clk 0:02:01]}  e5 {[%clk 0:02:00]} 21. Bd7 {[%clk 0:01:45]}  Red8 {[%clk 0:01:53]} 22. Be7 {[%clk 0:01:45]}  e4 {[%clk 0:01:38]} 23. Bxd8+ {[%clk 0:01:41]}  Rxd8 {[%clk 0:01:38]} 24. Rdd1 {[%clk 0:01:41]}  c5 {[%clk 0:01:35]} 25. Bg4 {[%clk 0:01:36]}  Rf8 {[%clk 0:01:31]} 26. Rd6+ {[%clk 0:01:31]}  Ka5 {[%clk 0:01:28]} 27. Rxg6 {[%clk 0:01:31]} 1-0


[Site "https://www.chess.com"]

[Event "Titled Tuesday Blitz March 15 Late 2022"]
[White "Rosen, Eric"]
[Black "Rabineau, Clement"]
[WhiteFideId "2032562"]
[BlackFideId "628891"]
[WhiteElo "2362"]
[BlackElo "2237"]
[Result "1-0"]
[Round "08"]
[TimeControl "180+1"]
[Date "2022.03.16"]
[WhiteClock "0:00:03"]
[BlackClock "0:00:01"]

1. d4 {[%clk 0:03:00]}  d5 {[%clk 0:02:59]} 2. Bf4 {[%clk 0:02:55]}  Nf6 {[%clk 0:02:57]} 3. e3 {[%clk 0:02:56]}  c5 {[%clk 0:02:57]} 4. Nf3 {[%clk 0:02:56]}  Nc6 {[%clk 0:02:57]} 5. Nbd2 {[%clk 0:02:56]}  g6 {[%clk 0:02:58]} 6. dxc5 {[%clk 0:02:47]}  Bg7 {[%clk 0:02:58]} 7. c3 {[%clk 0:02:42]}  Ne4 {[%clk 0:02:52]} 8. Nxe4 {[%clk 0:02:37]}  dxe4 {[%clk 0:02:53]} 9. Qxd8+ {[%clk 0:02:36]}  Nxd8 {[%clk 0:02:53]} 10. Bb5+ {[%clk 0:02:29]}  Bd7 {[%clk 0:02:53]} 11. Bxd7+ {[%clk 0:02:28]}  Kxd7 {[%clk 0:02:54]} 12. O-O-O+ {[%clk 0:02:29]}  Kc6 {[%clk 0:02:54]} 13. Nd4+ {[%clk 0:01:29]}  Kxc5 {[%clk 0:02:49]} 14. Bc7 {[%clk 0:01:05]}  Rc8 {[%clk 0:02:10]} 15. b4+ {[%clk 0:01:04]}  Kc4 {[%clk 0:01:51]} 16. Bxd8 {[%clk 0:00:33]}  Rhxd8 {[%clk 0:01:49]} 17. Kc2 {[%clk 0:00:33]}  f5 {[%clk 0:01:04]} 18. Rd2 {[%clk 0:00:17]}  Bxd4 {[%clk 0:00:20]} 19. exd4 {[%clk 0:00:17]}  Kd5 {[%clk 0:00:09]} 20. Re1 {[%clk 0:00:16]}  b5 {[%clk 0:00:08]} 21. f3 {[%clk 0:00:15]}  Rc6 {[%clk 0:00:05]} 22. fxe4+ {[%clk 0:00:09]}  fxe4 {[%clk 0:00:06]} 23. Rde2 {[%clk 0:00:10]}  Rdc8 {[%clk 0:00:06]} 24. Re3 {[%clk 0:00:09]}  Re6 {[%clk 0:00:06]} 25. Rf1 {[%clk 0:00:09]}  a6 {[%clk 0:00:05]} 26. Rf7 {[%clk 0:00:08]}  Rc7 {[%clk 0:00:04]} 27. Kb3 {[%clk 0:00:06]}  Rf6 {[%clk 0:00:04]} 28. Rxh7 {[%clk 0:00:05]}  Rf2 {[%clk 0:00:04]} 29. Rh4 {[%clk 0:00:05]}  Rxg2 {[%clk 0:00:03]} 30. Rhxe4 {[%clk 0:00:05]}  Rxh2 {[%clk 0:00:04]} 31. Re6 {[%clk 0:00:04]}  Rh5 {[%clk 0:00:01]} 32. Rxa6 {[%clk 0:00:03]} 1-0


[Site "https://www.chess.com"]

[Event "Titled Tuesday Blitz March 15 Late 2022"]
[White "Rozman, Levy"]
[Black "Lashkin, Jegor"]
[WhiteFideId "2039877"]
[BlackFideId "13907808"]
[WhiteElo "2376"]
[BlackElo "2344"]
[Result "1-0"]
[Round "08"]
[TimeControl "180+1"]
[Date "2022.03.15"]
[WhiteClock "0:00:15"]
[BlackClock "0:00:08"]

1. d4 {[%clk 0:02:46]}  Nf6 {[%clk 0:02:59]} 2. Bg5 {[%clk 0:02:45]}  e6 {[%clk 0:02:59]} 3. Nd2 {[%clk 0:02:39]}  h6 {[%clk 0:02:59]} 4. Bh4 {[%clk 0:02:39]}  c5 {[%clk 0:02:58]} 5. e4 {[%clk 0:02:40]}  g5 {[%clk 0:02:56]} 6. Bg3 {[%clk 0:02:39]}  cxd4 {[%clk 0:02:56]} 7. e5 {[%clk 0:02:40]}  Nd5 {[%clk 0:02:55]} 8. h4 {[%clk 0:02:41]}  gxh4 {[%clk 0:02:26]} 9. Rxh4 {[%clk 0:02:40]}  Nc6 {[%clk 0:02:24]} 10. Ngf3 {[%clk 0:02:39]}  d6 {[%clk 0:02:14]} 11. Bb5 {[%clk 0:02:38]}  dxe5 {[%clk 0:01:50]} 12. Nxe5 {[%clk 0:02:36]}  Bd7 {[%clk 0:01:49]} 13. Bxc6 {[%clk 0:02:24]}  Bxc6 {[%clk 0:01:44]} 14. Qh5 {[%clk 0:02:13]}  Qf6 {[%clk 0:01:34]} 15. Nxc6 {[%clk 0:02:09]}  Rg8 {[%clk 0:01:03]} 16. Be5 {[%clk 0:01:52]}  Qg5 {[%clk 0:01:00]} 17. Nxd4 {[%clk 0:01:39]}  Qxg2 {[%clk 0:00:55]} 18. O-O-O {[%clk 0:01:35]}  Be7 {[%clk 0:00:33]} 19. Rh2 {[%clk 0:01:24]}  Qg6 {[%clk 0:00:27]} 20. Qxg6 {[%clk 0:01:15]}  Rxg6 {[%clk 0:00:28]} 21. c4 {[%clk 0:01:13]}  Nb4 {[%clk 0:00:25]} 22. Rh3 {[%clk 0:00:46]}  Rd8 {[%clk 0:00:22]} 23. a3 {[%clk 0:00:45]}  Na6 {[%clk 0:00:20]} 24. Nb5 {[%clk 0:00:41]}  Nc5 {[%clk 0:00:19]} 25. Kc2 {[%clk 0:00:23]}  Rg2 {[%clk 0:00:16]} 26. Bg3 {[%clk 0:00:21]}  Bg5 {[%clk 0:00:13]} 27. Nf3 {[%clk 0:00:18]}  Rxd1 {[%clk 0:00:13]} 28. Kxd1 {[%clk 0:00:19]}  Bf6 {[%clk 0:00:08]} 29. Ke2 {[%clk 0:00:15]}  Ne4 {[%clk 0:00:08]} 30. Nd6+ {[%clk 0:00:10]}  Nxd6 {[%clk 0:00:07]} 31. Bxd6 {[%clk 0:00:11]}  Rg4 {[%clk 0:00:07]} 32. b3 {[%clk 0:00:09]}  Bg7 {[%clk 0:00:06]} 33. Rg3 {[%clk 0:00:09]}  Rxg3 {[%clk 0:00:05]} 34. fxg3 {[%clk 0:00:10]}  f5 {[%clk 0:00:06]} 35. Be5 {[%clk 0:00:10]}  Bf8 {[%clk 0:00:06]} 36. b4 {[%clk 0:00:11]}  a5 {[%clk 0:00:06]} 37. c5 {[%clk 0:00:11]}  axb4 {[%clk 0:00:07]} 38. axb4 {[%clk 0:00:12]}  Kd7 {[%clk 0:00:08]} 39. Nd4 {[%clk 0:00:12]}  Be7 {[%clk 0:00:08]} 40. Kd3 {[%clk 0:00:11]}  Bg5 {[%clk 0:00:08]} 41. b5 {[%clk 0:00:11]}  Bd8 {[%clk 0:00:07]} 42. c6+ {[%clk 0:00:11]}  bxc6 {[%clk 0:00:08]} 43. bxc6+ {[%clk 0:00:12]}  Ke7 {[%clk 0:00:09]} 44. c7 {[%clk 0:00:12]}  Bxc7 {[%clk 0:00:09]} 45. Bxc7 {[%clk 0:00:12]}  Kf6 {[%clk 0:00:09]} 46. Nf3 {[%clk 0:00:13]}  h5 {[%clk 0:00:09]} 47. Ke3 {[%clk 0:00:13]}  Kf7 {[%clk 0:00:09]} 48. Kf4 {[%clk 0:00:14]}  Kf6 {[%clk 0:00:09]} 49. Be5+ {[%clk 0:00:14]}  Kg6 {[%clk 0:00:10]} 50. Nd4 {[%clk 0:00:14]}  Kf7 {[%clk 0:00:10]} 51. Kg5 {[%clk 0:00:14]}  Ke7 {[%clk 0:00:07]} 52. Kxh5 {[%clk 0:00:14]}  Kf7 {[%clk 0:00:07]} 53. Kg5 {[%clk 0:00:15]}  Ke7 {[%clk 0:00:08]} 54. Kg6 {[%clk 0:00:15]} 1-0


[Site "https://www.chess.com"]

[Event "Titled Tuesday Blitz March 15 Late 2022"]
[White "Rudykh, Stepan"]
[Black "Ashiev, Eduard"]
[WhiteFideId "4180321"]
[BlackFideId "4130090"]
[WhiteElo "2117"]
[BlackElo "2004"]
[Result "0-1"]
[Round "08"]
[TimeControl "180+1"]
[Date "2022.03.16"]
[WhiteClock "0:00:07"]
[BlackClock "0:00:01"]

1. e4 {[%clk 0:02:59]}  e5 {[%clk 0:02:57]} 2. Nf3 {[%clk 0:02:59]}  Nc6 {[%clk 0:02:57]} 3. Bb5 {[%clk 0:02:58]}  Nge7 {[%clk 0:02:56]} 4. c3 {[%clk 0:02:50]}  g6 {[%clk 0:02:55]} 5. d4 {[%clk 0:02:49]}  exd4 {[%clk 0:02:52]} 6. cxd4 {[%clk 0:02:50]}  d5 {[%clk 0:02:52]} 7. Nc3 {[%clk 0:02:34]}  Bg7 {[%clk 0:02:49]} 8. exd5 {[%clk 0:02:25]}  Nxd5 {[%clk 0:02:48]} 9. O-O {[%clk 0:02:14]}  O-O {[%clk 0:02:45]} 10. Bg5 {[%clk 0:02:12]}  f6 {[%clk 0:02:26]} 11. Bh4 {[%clk 0:02:08]}  Nce7 {[%clk 0:02:21]} 12. Re1 {[%clk 0:01:53]}  c6 {[%clk 0:02:17]} 13. Bc4 {[%clk 0:01:53]}  Kh8 {[%clk 0:02:16]} 14. Qb3 {[%clk 0:01:46]}  Nb6 {[%clk 0:02:05]} 15. Bd3 {[%clk 0:01:41]}  Nf5 {[%clk 0:01:42]} 16. Rad1 {[%clk 0:01:19]}  Nxh4 {[%clk 0:01:23]} 17. Nxh4 {[%clk 0:01:20]}  Bg4 {[%clk 0:01:05]} 18. Rd2 {[%clk 0:01:15]}  Re8 {[%clk 0:01:00]} 19. Re3 {[%clk 0:01:00]}  Rxe3 {[%clk 0:00:43]} 20. fxe3 {[%clk 0:01:01]}  Qe8 {[%clk 0:00:29]} 21. e4 {[%clk 0:00:47]}  Rd8 {[%clk 0:00:28]} 22. Bf1 {[%clk 0:00:41]}  f5 {[%clk 0:00:25]} 23. e5 {[%clk 0:00:39]}  Bxe5 {[%clk 0:00:22]} 24. Ne2 {[%clk 0:00:22]}  Bxe2 {[%clk 0:00:19]} 25. Rxe2 {[%clk 0:00:22]}  Bxd4+ {[%clk 0:00:19]} 26. Kh1 {[%clk 0:00:23]}  Qf8 {[%clk 0:00:15]} 27. Qh3 {[%clk 0:00:22]}  Kg7 {[%clk 0:00:14]} 28. Qg3 {[%clk 0:00:21]}  Nd5 {[%clk 0:00:10]} 29. Rd2 {[%clk 0:00:16]}  Bb6 {[%clk 0:00:06]} 30. Qe5+ {[%clk 0:00:14]}  Qf6 {[%clk 0:00:05]} 31. Qg3 {[%clk 0:00:14]}  Kh8 {[%clk 0:00:04]} 32. Rf2 {[%clk 0:00:13]}  Re8 {[%clk 0:00:03]} 33. h3 {[%clk 0:00:13]}  Bxf2 {[%clk 0:00:03]} 34. Qxf2 {[%clk 0:00:13]}  f4 {[%clk 0:00:02]} 35. Nf3 {[%clk 0:00:12]}  Ne3 {[%clk 0:00:02]} 36. Ne1 {[%clk 0:00:10]}  Nf5 {[%clk 0:00:02]} 37. Nd3 {[%clk 0:00:09]}  Ng3+ {[%clk 0:00:02]} 38. Kh2 {[%clk 0:00:10]}  Qg5 {[%clk 0:00:02]} 39. Nxf4 {[%clk 0:00:09]}  Rf8 {[%clk 0:00:02]} 40. Qe3 {[%clk 0:00:07]}  Nxf1+ {[%clk 0:00:01]} 0-1


[Site "https://www.chess.com"]

[Event "Titled Tuesday Blitz March 15 Late 2022"]
[White "Sarana, Alexey"]
[Black "Bryakin, Mikhail"]
[WhiteFideId "24133795"]
[BlackFideId "4165314"]
[WhiteElo "2666"]
[BlackElo "2417"]
[Result "0-1"]
[Round "08"]
[TimeControl "180+1"]
[Date "2022.03.15"]
[WhiteClock "0:00:04"]
[BlackClock "0:00:40"]

1. d4 {[%clk 0:02:52]}  d6 {[%clk 0:03:00]} 2. c4 {[%clk 0:02:52]}  Nf6 {[%clk 0:02:59]} 3. Nc3 {[%clk 0:02:51]}  e5 {[%clk 0:02:59]} 4. Nf3 {[%clk 0:02:51]}  Nc6 {[%clk 0:02:54]} 5. d5 {[%clk 0:02:50]}  Ne7 {[%clk 0:02:54]} 6. e4 {[%clk 0:02:50]}  Ng6 {[%clk 0:02:50]} 7. Be2 {[%clk 0:02:51]}  Be7 {[%clk 0:02:50]} 8. h3 {[%clk 0:02:47]}  a5 {[%clk 0:02:47]} 9. g3 {[%clk 0:02:46]}  b6 {[%clk 0:02:46]} 10. Be3 {[%clk 0:02:46]}  O-O {[%clk 0:02:42]} 11. Qd2 {[%clk 0:02:46]}  Nd7 {[%clk 0:02:42]} 12. O-O-O {[%clk 0:02:45]}  Nc5 {[%clk 0:02:42]} 13. g4 {[%clk 0:02:43]}  Nh4 {[%clk 0:02:37]} 14. g5 {[%clk 0:02:39]}  Nxf3 {[%clk 0:02:36]} 15. Bxf3 {[%clk 0:02:40]}  f5 {[%clk 0:02:34]} 16. gxf6 {[%clk 0:02:39]}  Bxf6 {[%clk 0:02:29]} 17. Bg4 {[%clk 0:02:39]}  a4 {[%clk 0:02:12]} 18. Rdg1 {[%clk 0:02:36]}  Kh8 {[%clk 0:02:06]} 19. Kc2 {[%clk 0:02:36]}  Ba6 {[%clk 0:02:04]} 20. Qe2 {[%clk 0:02:32]}  Qe8 {[%clk 0:01:59]} 21. Kb1 {[%clk 0:02:19]}  Rb8 {[%clk 0:01:54]} 22. h4 {[%clk 0:01:55]}  b5 {[%clk 0:01:52]} 23. Bxc5 {[%clk 0:01:56]}  dxc5 {[%clk 0:01:52]} 24. cxb5 {[%clk 0:01:56]}  Bxb5 {[%clk 0:01:52]} 25. Nxb5 {[%clk 0:01:56]}  Qxb5 {[%clk 0:01:53]} 26. Qxb5 {[%clk 0:01:51]}  Rxb5 {[%clk 0:01:54]} 27. Rc1 {[%clk 0:01:42]}  a3 {[%clk 0:01:51]} 28. b3 {[%clk 0:01:42]}  Be7 {[%clk 0:01:51]} 29. f3 {[%clk 0:01:42]}  Bd6 {[%clk 0:01:47]} 30. Rc4 {[%clk 0:01:39]}  Rb4 {[%clk 0:01:48]} 31. Rxb4 {[%clk 0:01:39]}  cxb4 {[%clk 0:01:47]} 32. h5 {[%clk 0:01:40]}  Ra8 {[%clk 0:01:42]} 33. Rc1 {[%clk 0:01:26]}  Kg8 {[%clk 0:01:37]} 34. Rc6 {[%clk 0:01:21]}  Kf8 {[%clk 0:01:35]} 35. Kc2 {[%clk 0:01:16]}  Kf7 {[%clk 0:01:23]} 36. Kd3 {[%clk 0:01:15]}  Kf6 {[%clk 0:01:13]} 37. Bf5 {[%clk 0:01:09]}  g6 {[%clk 0:01:10]} 38. hxg6 {[%clk 0:01:10]}  hxg6 {[%clk 0:01:11]} 39. Bg4 {[%clk 0:01:08]}  Kg5 {[%clk 0:01:11]} 40. Kc4 {[%clk 0:01:02]}  Kf4 {[%clk 0:01:09]} 41. Kb5 {[%clk 0:00:59]}  Rb8+ {[%clk 0:00:58]} 42. Ka6 {[%clk 0:00:59]}  Rh8 {[%clk 0:00:58]} 43. Rc2 {[%clk 0:00:58]}  Ke3 {[%clk 0:00:56]} 44. Rg2 {[%clk 0:00:50]}  Rh1 {[%clk 0:00:50]} 45. Kb7 {[%clk 0:00:33]}  Rb1 {[%clk 0:00:48]} 46. Be6 {[%clk 0:00:14]}  Rb2 {[%clk 0:00:46]} 47. Rxg6 {[%clk 0:00:14]}  Rxa2 {[%clk 0:00:46]} 48. Rg3 {[%clk 0:00:06]}  Rb2 {[%clk 0:00:44]} 49. f4+ {[%clk 0:00:06]}  Kxf4 {[%clk 0:00:44]} 50. Rg4+ {[%clk 0:00:05]}  Ke3 {[%clk 0:00:44]} 51. Rg8 {[%clk 0:00:03]}  Kd4 {[%clk 0:00:43]} 52. Ra8 {[%clk 0:00:03]}  Rxb3 {[%clk 0:00:42]} 53. Kc6 {[%clk 0:00:03]}  Rb1 {[%clk 0:00:40]} 54. Kb5 {[%clk 0:00:04]}  b3 {[%clk 0:00:40]} 55. Ra4+ {[%clk 0:00:04]}  Ke3 {[%clk 0:00:40]} 56. Kc4 {[%clk 0:00:04]}  a2 {[%clk 0:00:40]} 0-1


[Site "https://www.chess.com"]